Cogmind - Beta 16 @@@ ROGUE MODE // 2025.12.02 @ 20:00:46 Player: ktur Result: Destroyed by 2M-3BC(R) with Subdweller Machine Gun Performance ------------- Evolutions (0) 0 Regions Visited (3) 600 Robots Destroyed (22) 110 Value Destroyed (535) 535 Prototype IDs (14) 280 Alien Tech Used (0) 0 Bonus (60) 60 TOTAL SCORE: 1585 Bonus ------- Follower Combat Kills 60 Cogmind --------- Core Integrity 0/250 Matter 300/300 Energy 200/200 System Corruption 0% Temperature Cool (0) Movement Treading (160) Location -10/Subcaves Parts ------- > --- POWER (1) -------- Subdweller Power Source > --- PROPULSION (2) --- Light Treads > --- UTILITY (2) ------ Small Storage Unit > --- WEAPON (2) ------- Subdweller Laser Ripper > --- INVENTORY (8) ---- Makeshift Flight Unit Experimental Sensor Array Cobbler Unit Grenade Launcher Subdweller Shrapnel Launcher Peak State ------------ > --- POWER ------------ Subdweller Power Source > --- PROPULSION ------- Light Treads Spiked Treads > --- UTILITY ---------- Small Storage Unit Makeshift Thermal Plating > --- WEAPON ----------- Subdweller Beam Cannon Ripper > --- INVENTORY -------- Light Treads Makeshift Flight Unit Experimental Sensor Array Cobbler Unit Subdweller Laser Grenade Launcher Subdweller Shrapnel Launcher [Rating: 18] Favorites ----------- Power Light Ion Engine Engine Light Ion Engine Propulsion Light Treads Treads Light Treads Utility Small Storage Unit Device Seismic Detector Storage Small Storage Unit Protection Makeshift Thermal Plating Weapon Beam Cannon Energy Gun Subdweller Laser Energy Cannon Beam Cannon Ballistic Gun Subdweller Machine Gun Launcher Grenade Launcher Special Weapon Mining Laser Slashing Weapon Ripper Build | -11 -10 -10 -10 ------- Run | Yrd Mat Min Sub Slots Evolved . | . . . . Power . | . . . . Propulsion . | . . . . Utility . | . . . . Weapon . | . . . . Parts Attached 25 | 7 4 . 14 Power 3 | 1 . . 2 Engine 3 | 1 . . 2 Core . | . . . . Reactor . | . . . . Propulsion 5 | 2 . . 3 Treads 5 | 2 . . 3 Leg . | . . . . Wheel . | . . . . Hover . | . . . . Flight . | . . . . Utility 4 | 2 . . 2 Device 2 | 1 . . 1 Storage 1 | 1 . . . Processor . | . . . . Hackware . | . . . . Protection 1 | . . . 1 Artifact . | . . . . Weapon 13 | 2 4 . 7 Energy Gun 1 | . . . 1 Energy Cannon 2 | . 1 . 1 Ballistic Gun 7 | 2 1 . 4 Ballistic Cannon . | . . . . Launcher 1 | . 1 . . Special Weapon 1 | . 1 . . Impact Weapon . | . . . . Slashing Weapon 1 | . . . 1 Piercing Weapon . | . . . . Special Melee Weapon . | . . . . Unidentified Prototypes . | . . . . Parts Lost 5 | . . . 5 Power 1 | . . . 1 Propulsion 2 | . . . 2 Utility 2 | . . . 2 Weapon . | . . . . Highest Loss Streak 2 | . . . 2 To Critical Strikes . | . . . . Average Backups 7 | 4 7 8 7 Power . | . 1 1 . Propulsion 1 | 1 2 2 1 Utility 1 | . 1 1 1 Weapon 3 | 1 3 4 3 Tool/Special . | . . . . Unused Backups 12 | 1 5 1 5 Power 1 | . . . 1 Propulsion 4 | 1 2 . 1 Utility 4 | . 1 1 2 Weapon 3 | . 2 . 1 Tool/Special . | . . . . Average Slot Usage (%) 98 | . 100 100 97 Engine 13 | . 14 14 13 Treads 27 | . 28 28 27 Device 9 | . 14 14 6 Storage 14 | . 14 14 14 Protection 2 | . . . 5 Energy Cannon 9 | . 13 14 5 Ballistic Gun 9 | . 13 . 14 Launcher 4 | . . 13 . Slashing Weapon 2 | . . . 4 Peak Build Rating 18 | 7 8 8 18 Average Rating 10 | 5 7 7 13 On Entrance 5 | . 7 7 8 Avg Prop Armor Cover (%) . | . . . . Naked Turns . | . . . . Heaviest Build 26 | 12 15 15 26 Greatest Support 40 | 40 40 40 40 Greatest Overweight (x) 1 | . . . 1 Average Overweight (x) . | . . . . Largest Inventory Capacity 8 | 8 8 8 8 Average Capacity 7 | 7 8 8 8 Most Carried 8 | 6 8 8 8 Average Carried 7 | 4 7 7 7 Final Capacity 8 | 8 8 8 8 Final Carried 8 | 6 8 8 6 Class Distribution -------------------- 100% | Mutant Dominant Class ---------------- Mutant | -10/Materials Mutant | -10/Mines Mutant | -10/Subcaves Resources | -11 -10 -10 -10 ----------- Run | Yrd Mat Min Sub Matter Collected 796 | 333 48 76 339 Remotely . | . . . . Salvage Created 651 | 131 48 22 450 Parts 44 | 9 2 6 27 Haulers Intercepted 1 | . 1 . . Recyclers Shooed . | . . . . Parts Field Recycled . | . . . . Retrieved Matter . | . . . . Parts Self-Destructed 8 | . . . 8 Prevented . | . . . . Parts Restored . | . . . . Kills | -11 -10 -10 -10 ------- Run | Yrd Mat Min Sub Combat Hostiles Destroyed 16 | . . 5 11 Guns 6 | . . . 6 Cannons 4 | . . . 4 AOE 6 | . . 5 1 Classes Destroyed 8 | 2 1 3 2 Worker 1 | . . 1 . Tunneler 5 | 5 . . . Hauler 1 | . 1 . . Recycler 1 | 1 . . . Swarmer 3 | . . 3 . Grunt 2 | . . . 2 Subdweller 9 | . . . 9 Assembled 2 | . . 2 . Best Kill Streak 3 | 2 1 3 2 Combat Bots Only 3 | . . 3 2 Max Kills in Single Turn 2 | 1 1 2 1 Gunslinging . | . . . . Exploded 2 | . . 2 1 Melee . | . . . . Uniques/NPCs Destroyed . | . . . . Combat | -11 -10 -10 -10 -------- Run | Yrd Mat Min Sub Hostile Shots Fired 68 | . . 4 64 Missed 18 | . . 1 17 Hits 50 | . . 3 47 Projectile 50 | . . 3 47 Critical Strikes 3 | . . . 3 Damage Taken 1120 | . . 26 1094 Core 253 | . . 8 245 Absorbed by Shields . | . . . . Ignored by Resistances 35 | . . . 35 Core Remaining (%) 100 | 100 . . . Volleys Fired 111 | 31 8 4 68 Largest 2 | 2 1 1 2 Hottest 100 | 40 100 30 100 Shots Fired 169 | 62 8 4 95 Gun 127 | 62 . . 65 Cannon 19 | . 3 . 16 Launcher 5 | . . 4 1 Special 18 | . 5 . 13 Kinetic 123 | 62 . . 61 Thermal 41 | . 8 . 33 Explosive 5 | . . 4 1 Electromagnetic . | . . . . Robot Hit Streak 20 | 8 1 . 20 Robot Miss Streak 4 | 4 2 1 1 Penetration Max . | . . . . Secondary Targets . | . . . . Shots Hit Robots 102 | 41 1 . 60 Core Hits 34 | 11 . 6 17 Critical Kills 2 | . 1 . 1 Critical Parts Destroyed . | . . . . Critical Strikes 3 | . 1 . 2 Meltdown 1 | . 1 . . Destroy 2 | . . . 2 Melee Attacks 9 | . . . 9 Impact . | . . . . Slashing 9 | . . . 9 Piercing . | . . . . Sneak Attacks . | . . . . Combat Hostiles . | . . . . Follow-up Attacks . | . . . . Damage Inflicted 1991 | 451 17 192 1331 Guns 1301 | 440 . . 861 Cannons 302 | . 17 . 285 Explosions 211 | . . 185 26 Melee 159 | . . . 159 Ramming 18 | 11 . 7 . Kinetic 1215 | 440 . . 775 Thermal 388 | . 17 . 371 Explosive 211 | . . 185 26 Electromagnetic . | . . . . Impact . | . . . . Slashing 159 | . . . 159 Piercing . | . . . . Highest Corruption . | . . . . Average Corruption . | . . . . Corruption Purged . | . . . . Corruption Blocked . | . . . . Overload Shots . | . . . . Overflow Damage . | . . . . Projectiles . | . . . . Explosions . | . . . . Melee . | . . . . Knockbacks . | . . . . Impact . | . . . . Kinetic . | . . . . Secondary . | . . . . Self-Inflicted Damage . | . . . . Shots . | . . . . Rammed 6 | 4 . 2 . Targets Rammed 7 | 4 . 3 . Kicked . | . . . . Crushed 1 | . . 1 . Highest Temperature 216 | . 100 . 216 Average Temperature 59 | . 45 . 99 Received Heat Transfer 389 | . . . 389 Siege Activations . | . . . . Martial Activations . | . . . . Shielding Activations . | . . . . Robots Disrupted . | . . . . Combat Hostiles . | . . . . Robots Corrupted . | . . . . Combat Hostiles . | . . . . Parts Fried . | . . . . Impact Corruptions . | . . . . Robots Melted 1 | . 1 . . Combat Hostiles . | . . . . Parts Melted . | . . . . Heat Transferred 618 | . 37 . 581 Parts Sabotaged . | . . . . Parts Stolen . | . . . . Parts Stripped . | . . . . Power Chain Reactions . | . . . . Alert | -11 -10 -10 -10 ------- Run | Yrd Mat Min Sub Maximum Alert Level . | . . . . Low Security (%) 100 | 100 100 100 . Level 1 . | . . . . Level 2 . | . . . . Level 3 . | . . . . Level 4 . | . . . . Level 5 . | . . . . High Security . | . . . . Max Security . | . . . . Peak Influence 92 | 5 7 92 . Initial . | . . . . Average 7 | . . 11 . Influence Increases 278 | 30 18 120 110 Destroy 0b10 Robot/C 140 | . . 60 80 Destroy 0b10 Robot/NC 40 | 30 5 5 . Destroy Leader 32 | . 2 10 20 Allied During Kill 10 | . . . 10 Successful Hack 6 | . 6 . . Disable Machine 30 | . . 30 . Destroy Structure 20 | . 5 15 . Influence Decreases 278 | 30 18 120 110 Time Decay 256 | 30 18 120 88 Lost Ally 22 | . . . 22 Squads Dispatched . | . . . . Investigation . | . . . . Extermination . | . . . . Reinforcement . | . . . . Assault . | . . . . Garrison . | . . . . Intercept . | . . . . Searches Triggered . | . . . . Construction Impeded . | . . . . Haulers Reinforced . | . . . . Active Scanning Responses . | . . . . Cargo Convoy Interrupts . | . . . . Stealth | -11 -10 -10 -10 --------- Run | Yrd Mat Min Sub Distress Signals 1 | . . 1 . Communications Jammed . | . . . . Distress Signals . | . . . . Times Spotted 20 | . 1 6 13 Peak Tracking Total 3 | . 1 3 2 Tactical Retreats . | . . . . Traps | -11 -10 -10 -10 ------- Run | Yrd Mat Min Sub Traps Triggered 2 | . . . 2 Indirectly . | . . . . Trap Hack Attempts . | . . . . Triggered . | . . . . Disarmed . | . . . . Reprogrammed . | . . . . Reused . | . . . . Traps Extracted . | . . . . Installed . | . . . . Triggered . | . . . . Machines | -11 -10 -10 -10 ---------- Run | Yrd Mat Min Sub Machines Disabled 3 | . . 2 1 Max in Single Turn 1 | . . 1 1 Machines Repaired . | . . . . Machines Dismantled . | . . . . Machines Sabotaged . | . . . . Overloaded Fab Kills . | . . . . Hacking | -11 -10 -10 -10 --------- Run | Yrd Mat Min Sub Machines Accessed 6 | . 4 . 2 Terminals 4 | . 4 . . Fabricators . | . . . . Repair Stations . | . . . . Recycling Units . | . . . . Scanalyzers . | . . . . Garrison Access . | . . . . Total Hacks 13 | . 8 . 5 Successful 8 | . 3 . 5 Failed 4 | . 4 . . Catastrophic . | . . . . Database Lockouts 1 | . 1 . . Manual 5 | . 5 . . Terminals 8 | . 8 . . Fabricators . | . . . . Repair Stations . | . . . . Recycling Units . | . . . . Scanalyzers . | . . . . Garrison Access . | . . . . Terminal Hacks 8 | . 3 . 5 Record 4 | . . . 4 Robot Analysis 1 | . 1 . . Prototype ID Bank 1 | . 1 . . Zone Layout 1 | . 1 . . Proto ID Catalog 1 | . . . 1 Fabricator Hacks . | . . . . Repair Station Hacks . | . . . . Recycling Unit Hacks . | . . . . Scanalyzer . | . . . . Garrison Access Hacks . | . . . . Unauthorized Hacks . | . . . . Terminals . | . . . . Fabricators . | . . . . Repair Stations . | . . . . Recycling Units . | . . . . Scanalyzers . | . . . . Garrison Access . | . . . . Data Cores Recovered . | . . . . Used . | . . . . Hacking Detections 4 | . 4 . . Full Trace Events . | . . . . Feedback Events . | . . . . Feedback Blocked . | . . . . Robot Schematics Acquired . | . . . . Robots Built . | . . . . Authchips . | . . . . Time . | . . . . Total Robot Build Rating . | . . . . Part Schematics Acquired . | . . . . Parts Built . | . . . . Authchips . | . . . . Time . | . . . . Total Part Build Rating . | . . . . Part Studies Acquired . | . . . . Parts Repaired . | . . . . Time . | . . . . Parts Recycled . | . . . . Recycled Matter . | . . . . Retrieved Matter . | . . . . Retrieved Components . | . . . . Parts Scanalyzed . | . . . . Part Schematics Acquired . | . . . . Parts Damaged . | . . . . Bothacking | -11 -10 -10 -10 ------------ Run | Yrd Mat Min Sub Used RIF Installer . | . . . . Robots Hacked . | . . . . Non-combat . | . . . . Combat . | . . . . Robot Hacks Applied . | . . . . Relay Couplers Released . | . . . . Fabnet Peak Effective % . | . . . . Robots Rewired . | . . . . Allies Hacked . | . . . . Hacks Repelled . | . . . . Allies | -11 -10 -10 -10 -------- Run | Yrd Mat Min Sub Total Allies 3 | . . 3 . Largest Group 3 | . . 3 3 Highest-Rated Group 40 | . . 40 40 Highest-Rated Ally 16 | . . 16 16 Total Orders . | . . . . Ally Attacks 25 | . . 4 21 Total Damage 232 | . . 22 210 Kills 4 | . . 2 2 Allies Corrupted . | . . . . Allies Melted . | . . . . Intel | -11 -10 -10 -10 ------- Run | Yrd Mat Min Sub Active Infowar (turns) 1623 | 52 283 1039 249 Seismic 1623 | 52 283 1039 249 Robot Analysis Total 1 | . 1 . . Derelict Logs Recovered 1 | . . 1 . Drone Launches . | . . . . Drone Recoveries . | . . . . Exploration | -11 -10 -10 -10 ------------- Run | Yrd Mat Min Sub Turns Passed 3368 | 340 283 1039 1706 Spaces Moved 1690 | 138 152 525 875 Core 2 | 2 . . . Treads 1688 | 136 152 525 875 Legs . | . . . . Wheels . | . . . . Hover . | . . . . Flight . | . . . . Fastest Speed 50 | 50 160 160 160 Average Speed 159 | 158 160 160 160 Slowest Speed 260 | 160 160 160 260 Overloaded Moves . | . . . . Propulsion Burnouts . | . . . . Robots Hopped . | . . . . Potential Cave-ins . | . . . . Cave-ins Triggered . | . . . . Exploration Rate (%) 41 | 7 36 80 43 Regions Visited 3 Branch Regions 2 Pre-discovered Areas 2 | . . 2 . Known Exits Taken . | . . . . Unknown Exits Taken 3 | 1 1 1 . Scrap Searched 5 | . . 1 4 Spaces Dug 2 | . 2 . . Terrain Destroyed 32 | . 5 18 9 Melee . | . . . . Projectile 7 | . 5 . 2 AOE 25 | . . 18 7 Terrain Rammed . | . . . . Walls Destroyed . | . . . . Machines Disabled . | . . . . Actions | -11 -10 -10 -10 --------- Run | Yrd Mat Min Sub Total 2136 | 199 176 718 1043 Wait 243 | 10 . 184 49 Move 1687 | 137 151 524 875 Hop . | . . . . Pick Up 23 | 9 6 1 7 Fast Attach 12 | 5 1 . 6 Attach 5 | 2 . . 3 Detach 2 | . 1 . 1 Swap 14 | . 3 1 10 Drop 23 | 1 6 1 15 Fire 111 | 31 8 4 68 Melee 9 | . . . 9 Ram . | . . . . Kick . | . . . . Crush 7 | 4 . 3 . Escape Stasis . | . . . . Rewire . | . . . . Trap . | . . . . Miscellaneous . | . . . . Route ------- -11/Scrapyard -10/Materials -10/Mines (discovered 3 exits: [*Mat] / [*Exi] / *Sub) -10/Subcaves (discovered 1 exit: [*Mat]) History --------- Turn | Location | Event 31 | -11/Scrapyard | Discovered new exit (range 14) 341 | -11/Scrapyard | Entered Materials 342 | -10/Materials | Build established: Mutant 485 | -10/Materials | Central database locked down 580 | -10/Materials | Discovered new exit (range 11) 624 | -10/Materials | Entered Mines 686 | -10/Mines | Assembled infested the area 897 | -10/Mines | Deemed a non-threat by the Exiles lab entrance 1102 | -10/Mines | Discovered new exit (range 5) 1113 | -10/Mines | Assisted by bots powering up and referring to "LRC-V3" 1300 | -10/Mines | Discovered new exit (range 5) 1385 | -10/Mines | Learned location of Storage (-9) 1499 | -10/Mines | Learned location of Zion (-6) 1515 | -10/Mines | Found a damaged Exp. Sensor Array with a note attached 1519 | -10/Mines | Found Prototype Device 1658 | -10/Mines | Discovered new exit (range 3) 1663 | -10/Mines | Entered Subcaves 1663 | -10/Subcaves | Accompanied by 3 allies 1883 | -10/Subcaves | Visited Clippyterm 1888 | -10/Subcaves | Learned Factory stockpile data 1953 | -10/Subcaves | Lost 3 allies 2190 | -10/Subcaves | Visited 4L-MR0's lab 2432 | -10/Subcaves | Shifting Twisted Machinery released Sub. Monowheel 2474 | -10/Subcaves | Shifting Twisted Machinery released Mak. Thermal Plating 2516 | -10/Subcaves | Shifting Twisted Machinery released Ripper 2564 | -10/Subcaves | Shifting Twisted Machinery released Sub. Machine Gun 2639 | -10/Subcaves | Discovered new exit (range 10) 3012 | -10/Subcaves | Core integrity fell below 50% 3323 | -10/Subcaves | Core integrity fell below 20% 3369 | -10/Subcaves | Destroyed by 2M-3BC(R) with Subdweller Machine Gun Last Messages --------------- 03020_ Sub. Machine Gun shoots sparks and powers down. 03023_ Acquired 10 matter. 03023_ JP-SCO(R) destroyed. 03024_ Acquired 9 matter. 03028_ Dropped Broken Sub. Machine Gun. 03029_ Acquired Sub. Laser. 03030_ Dropped Broken Sub. Machine Gun. 03034_ Acquired Sub. Beam Cannon. 03036_ Acquired 10 matter. 03123_ Lgt. Treads destroyed. 03125_ Mak. Thermal Plating destroyed. 03135_ O9-GUP(R) destroyed. 03151_ 5L-OBI(R) destroyed. 03153_ Acquired 21 matter. 03292_ Sub. Beam Cannon shoots sparks and powers down. 03303_ Dropped Broken Sub. Beam Cannon. 03315_ Spk. Treads destroyed. 03323_ DF-BQ4(R) suffers critical hit (Destroy). 03323_ DF-BQ4(R) destroyed. 03326_ Acquired 5 matter. Map ----- +----------------------------------------------------+ | ????????????????##"#??????#######????????????????? | | ???????????????## "###??###"" ""#????????????????? | | ???????????????# "#?##""" ""##????????????????? | | ???????????????# ###""" "###?????????????????? | | ??????????????## "" "##???????????????????? | | ????????#####?# ""##???????????????????? | | ????????# ### #"""# "#???????????????????? | | ????????# ## #""## ##???????????????????? | | ????????## ## #"""# #????????????????????? | | ?????????## ##""" ##????????????????????? | | ??????????# ##"" ##?????????????????????? | | ?????????## # " ####??????????????????????? | | ?????????# ! #####?????????????????????????? | | ?????????## !%######?????????????????????????????? | | ??????????# =#??#######?????????????????????????? | | ??????????# #### """"##????????????????????????? | | ??????????# *%&### #????????????????????????? | | ??????????# &! ### #????????????????????????? | | ??????????# ### ###?###???#???????????????? | | ??????????## ## ## ## ## ##### ???????? | | ???????????# ### !???????? | | ???????????# * #?# ???????? | | ???????????# &%] #?# ### ???????? | | ??????????## &##### ##?????? ##??????????? | | ??????????# ####RR######??????#???????????? | | ??????????# ## @ # #?????????????? | | ??????????# #??????????????? | | ??????????####### ##??????????????? | | ????????????????# ##???????????????? | | ???????????????## #????????????????? | | ??????????????## ### #????????????????? | | ?????????????## ### #???????????????? | | ?????????????# ??????????????? | | ?????????????## # ????????????? | | ??????????????# ## ### # ????????????? | | ?????????????## #?# #??###?????????????? | | ?????????????# #?? #??????????????????? | | ?????????????## #?? ##??????????????????? | | ????????????### ##?? #???????????????????? | | ???????????## ##???? ???????????????????? | | ??????????## ##????#????????????????????? | | ?????????## #?????????????????????????? | | ?????????# #?????????????????????????? | | ?????????## #?????????????????????????? | | ?????????## ## " #??????????????????????? | | ?????????# ###? " "" ????????????????????? | | ????????## ##??? "" "" ??????????????????????? | | ??????### ##???? """"#"???????????????????????? | | ??????# &! #??????##"??????????????????????????? | | ??????# ![###??????????????????????????????????? | +----------------------------------------------------+ Best States ------------- Heat Dissipation 39 Energy Generation 15 Energy Capacity 200 Matter Stores 300 Matter Capacity 300 Sight Range 16 Terrain Scan Density 10 Armor Coverage 100 Resistance: TH 10 Evasion (%) 40 Recoil Reduction 2 Item Schematics ----------------- None Robot Schematics ------------------ None Fabricated ------------ Nothing Repaired ---------- Nothing Studied --------- None Alien Tech Used ----------------- None Achievements -------------- None Challenges ------------ None Game ------ Seed ChipScatterBattery Manual? 0 Play Time 00:18:03 Cumulative 840.0 hours Start 2025.12.02 @ 19:07:13 End 2025.12.02 @ 20:00:46 Sessions 1 Manual Loads 0 Difficulty Rogue Special Mode None Game No. 846 Rogue 846 Adventurer 0 Explorer 0 Win Type - Total 40 Types 15/4/11/2/0/0/5/2/1/0 Lore% 96 Gallery% 86 Achievement% 65 Wizard Run 0 Options --------- Layout 0 ASCII 0 Keyboard 0 Movement Numpad Keybinds 0 Fullscreen 1 Font 18/Smallcaps Map View 76x50 Zoom Use 0% Tactical HUD 1 Map Filters NONE Filters NONE Steam 1 RUN: 2e1c6892-1839-48f7-a89e-0bc80c28783e